bitfinex/quotes_SOLUSD_20240826
["timestamp","ask_amount","ask_price","bid_price","bid_amount"]
[1724670304792,16.2059,161.75,161.65,29.41428]
[1724670304949,6.6455,161.74,161.65,29.41428]
[1724670305500,6.6455,161.74,161.67,29.41428]
[1724670306151,6.6455,161.74,161.65,29.41428]
[1724670307360,6.6455,161.74,161.67,29.41428]
[1724670308669,6.6455,161.74,161.65,29.41428]
[1724670309385,6.6455,161.74,161.66,1.23683636]
[1724670309588,6.6455,161.74,161.65,29.41428]
[1724670312290,6.6455,161.74,161.63,29.41428]
[1724670312463,395.4455,161.74,161.63,29.41428]
[1724670313816,388.8,161.74,161.67,29.41428]
[1724670314893,388.8,161.74,161.69,29.41428]
[1724670315099,388.8,161.74,161.7,45.0]
[1724670315971,388.8,161.74,161.71,11.76025617]
[1724670316171,388.8,161.74,161.69,11.76025617]
[1724670317287,388.8,161.74,161.64,14.17392255]
[1724670317590,388.8,161.74,161.69,11.76025617]
[1724670317770,0.12566,161.7,161.69,11.76025617]
[1724670319666,0.12566,161.7,161.67,11.76025617]
[1724670319868,0.12566,161.7,161.61,10.16173671]
[1724670320214,0.12566,161.7,161.62,11.76025617]
[1724670320521,6.3529,161.69,161.62,11.76025617]
[1724670322079,6.3529,161.69,161.6,29.43435974]
[1724670322297,15.8375,161.68,161.6,29.43435974]
[1724670324883,15.8375,161.68,161.64,29.43435974]
[1724670325082,15.8375,161.68,161.62,29.43435974]
[1724670325588,15.8375,161.68,161.63,1.23715505]
[1724670326094,15.8375,161.68,161.62,29.43435974]
[1724670326604,15.8375,161.68,161.63,1.23715606]
[1724670328302,15.8375,161.68,161.62,29.43435974]
[1724670328984,15.8375,161.68,161.6,29.43435974]
[1724670331691,15.8375,161.68,161.62,29.43435974]
[1724670331906,15.8375,161.68,161.63,1.23710813]
[1724670332091,15.8375,161.68,161.64,29.43435974]
[1724670332295,0.12566,161.7,161.66,29.43435974]
[1724670332497,0.12566,161.7,161.68,29.43435974]
[1724670332717,0.12566,161.7,161.69,1.23663462]
[1724670333212,0.12566,161.7,161.66,29.43435974]
[1724670333511,0.12566,161.7,161.67,45.0]
[1724670333717,0.12566,161.7,161.66,29.43435974]
[1724670334503,0.12566,161.7,161.64,29.43435974]
[1724670334921,0.12566,161.7,161.62,29.43435974]
[1724670336429,0.12566,161.7,161.63,1.23702202]
[1724670336632,0.12566,161.7,161.64,29.43435974]
[1724670336805,0.12566,161.7,161.65,1.23696656]
[1724670337127,0.12566,161.7,161.64,29.43435974]
[1724670337294,0.12566,161.7,161.62,39.59609645]
[1724670337494,0.12566,161.7,161.62,29.43435974]
[1724670337719,15.1411,161.69,161.58,10.16173671]
[1724670337908,0.13407769,161.63,161.58,29.43435974]
[1724670338098,0.13407769,161.63,161.59,3.33580201]
[1724670338802,0.13407769,161.63,161.58,29.43435974]
[1724670338999,0.13407769,161.63,161.59,1.23735832]
[1724670339210,0.13407769,161.63,161.6,29.43435974]
[1724670340025,0.13407769,161.63,161.61,1.23718426]
[1724670340722,0.13407769,161.63,161.6,29.43435974]
[1724670340925,0.13407769,161.63,161.61,1.23718483]
[1724670341804,0.13407769,161.63,161.62,29.43435974]
[1724670342204,0.13407769,161.63,161.62,74.43435974]
[1724670342630,0.13407769,161.63,161.62,75.67128733]
[1724670343137,0.11601595,161.65,161.62,75.67128733]
[1724670343433,0.11601595,161.65,161.64,29.43435974]
[1724670343722,0.11601595,161.65,161.64,74.43435974]
[1724670350208,0.13584297,161.67,161.64,74.43435974]
[1724670350408,0.13584297,161.67,161.66,29.43435974]
[1724670350707,0.12184658,161.69,161.66,74.43435974]
[1724670350926,0.12184658,161.69,161.67,1.23674765]
[1724670351236,0.12184658,161.69,161.67,45.0]
[1724670351621,0.12184658,161.69,161.67,46.23661324]
[1724670356227,0.12184658,161.69,161.67,45.0]
[1724670357835,0.24579087,161.68,161.67,45.0]
[1724670358064,0.24579087,161.68,161.67,56.76131833]
[1724670358341,0.24579087,161.68,161.67,45.0]
[1724670358542,0.24579087,161.68,161.58,13.02700755]
[1724670358857,0.24579087,161.68,161.66,11.76131833]
[1724670359451,0.13429851,161.68,161.66,11.76131833]
[1724670360121,0.13429851,161.68,161.65,29.41728386]
[1724670360740,0.13429851,161.68,161.67,29.41728386]
[1724670361037,0.13429851,161.68,161.67,74.41728386]
[1724670361239,0.13429851,161.68,161.67,75.6539009]
[1724670361438,0.13429851,161.68,161.67,74.41728386]
[1724670364252,0.11559598,161.69,161.67,74.41728386]
[1724670364446,0.11559598,161.69,161.68,46.23655848]
[1724670366061,0.11559598,161.69,161.68,45.0]
[1724670366624,0.11559598,161.69,161.68,46.23650368]
[1724670367458,0.12246455,161.71,161.68,74.41728386]
[1724670367626,0.12246455,161.71,161.7,29.41728386]
[1724670367820,0.12246455,161.71,161.7,74.41728386]
[1724670370240,0.11764095,161.73,161.7,74.41728386]
[1724670370434,0.11764095,161.73,161.72,29.41728386]
[1724670370834,0.11764095,161.73,161.72,74.41728386]
[1724670379390,15.5213,161.77,161.72,74.41728386]
[1724670379550,15.5213,161.77,161.73,45.0]
[1724670380082,15.5213,161.77,161.76,11.75279591]
[1724670380371,15.5213,161.77,161.76,56.75279591]
[1724670385752,15.5213,161.77,161.67,7.76441733]
[1724670385959,15.5213,161.77,161.68,47.01118364]
[1724670386158,15.5213,161.77,161.72,11.75279591]
[1724670386354,15.5213,161.77,161.66,6.608]
[1724670386572,15.5213,161.77,161.73,11.75279591]
[1724670386869,15.5213,161.77,161.69,1.23644171]
[1724670387049,15.5213,161.77,161.72,11.75279591]
[1724670387450,15.5213,161.77,161.68,47.01118364]
[1724670387451,15.5213,161.77,161.74,11.75279591]
[1724670388172,15.5213,161.77,161.75,1.23646559]
[1724670389261,15.5213,161.77,161.74,11.75279591]
[1724670390273,15.5213,161.77,161.72,11.75279591]
[1724670393062,15.5213,161.77,161.7,11.75279591]
[1724670393460,6.4292,161.76,161.7,11.75279591]
[1724670393659,15.8688,161.75,161.7,11.75279591]
[1724670394063,15.8688,161.75,161.57,6.0665]
[1724670394372,15.8919,161.73,161.65,11.75279591]
[1724670394756,15.2087,161.71,161.6,47.01118364]
[1724670395180,15.2087,161.71,161.65,11.75279591]
[1724670395475,15.2087,161.71,161.67,11.75279591]
[1724670396196,15.2087,161.71,161.69,11.75279591]
[1724670396478,388.8,161.75,161.69,11.75279591]
[1724670396679,388.8,161.75,161.74,11.75279591]
[1724670396848,15.2087,161.76,161.74,11.75279591]
[1724670402272,16.3369,161.81,161.75,1.23637987]
[1724670403267,16.3369,161.81,161.75,45.0]
[1724670404176,16.3369,161.81,161.74,11.75279591]
[1724670406576,16.3369,161.81,161.76,11.75279591]
[1724670406886,16.3369,161.81,161.77,1.23610719]
[1724670408663,15.9114,161.85,161.78,12.98888077]
[1724670408878,15.9114,161.85,161.8,11.75279591]
[1724670409886,15.9114,161.85,161.81,1.23593196]
[1724670411461,0.841083,161.88,161.82,11.75279591]
[1724670411667,0.841083,161.88,161.83,1.23571384]
[1724670415196,0.841083,161.88,161.82,11.75279591]
[1724670415587,0.841083,161.88,161.83,1.23563295]
[1724670416069,0.841083,161.88,161.84,11.75279591]
[1724670417587,0.841083,161.88,161.86,11.75279591]
[1724670417778,0.841083,161.88,161.87,1.23541164]
[1724670417975,0.841083,161.88,161.87,1.23538289]
[1724670418187,0.841083,161.88,161.86,11.75279591]
[1724670418570,0.841083,161.88,161.87,45.0]
[1724670419189,0.841083,161.88,161.87,46.23515884]
[1724670419390,16.6072,161.97,161.87,45.0]
[1724670419612,16.6072,161.97,161.91,11.75279591]
[1724670420666,11.75279591,161.96,161.84,6.0914]
[1724670420911,11.75279591,161.96,161.85,11.75279591]
[1724670421088,11.75279591,161.96,161.87,11.75279591]
[1724670421926,28.35999591,161.97,161.87,11.75279591]
[1724670423127,28.35999591,161.97,161.89,11.75279591]
[1724670423128,16.6072,161.97,161.89,11.75279591]
[1724670424109,16.6072,161.97,161.87,29.33448344]
[1724670424318,16.6072,161.97,161.88,45.0]
[1724670425219,16.6072,161.97,161.87,29.33448344]
[1724670425804,16.6072,161.97,161.88,1.23517908]
[1724670426007,16.6072,161.97,161.88,46.23517908]
[1724670426387,16.6072,161.97,161.88,45.0]
[1724670428900,16.6072,161.97,161.89,1.23505996]
[1724670429211,16.6072,161.97,161.88,45.0]
[1724670429710,16.6072,161.97,161.87,29.33448344]
[1724670430792,16.6072,161.97,161.88,45.0]
[1724670431027,16.6072,161.97,161.89,1.23507555]
[1724670431314,16.6072,161.97,161.88,45.0]
[1724670431825,16.6072,161.97,161.89,1.23507301]
[1724670432146,16.6072,161.97,161.88,45.0]
[1724670432147,16.6072,161.97,161.87,29.33448344]
[1724670432688,16.6072,161.97,161.88,46.23522735]
[1724670432907,16.6072,161.97,161.88,45.0]
[1724670433519,16.6072,161.97,161.89,1.2351371]
[1724670435030,16.6072,161.97,161.88,45.0]
[1724670437014,16.6072,161.97,161.89,30.56950768]
[1724670437220,16.6072,161.97,161.9,46.23496078]
[1724670440218,16.6072,161.97,161.9,45.0]
[1724670443520,16.6072,161.97,161.93,29.33448344]
[1724670443711,16.6072,161.97,161.95,29.33448344]
[1724670443903,1.0,162.0,161.96,1.23469346]
[1724670444218,1.0,162.0,161.96,45.0]
[1724670446045,1.0,162.0,161.97,11.72203425]
[1724670446414,1.0,162.0,161.98,1.23449695]
[1724670446616,1.0,162.0,161.97,11.72203425]
[1724670449316,1.0,162.0,161.99,11.72203425]
[1724670449512,1.0,162.0,161.99,56.72203425]
[1724670449723,1.0,162.0,161.99,57.95630176]
[1724670450220,1.0,162.0,161.99,56.72203425]
[1724670453252,15.176,162.06,161.99,104.84422869]
[1724670453554,6.1708,162.09,162.03,11.72203425]
[1724670453719,6.1708,162.09,162.03,56.72203425]
[1724670453920,15.9209,162.1,162.03,56.72203425]
[1724670458652,15.9209,162.1,162.08,11.72203425]
[1724670458847,15.9209,162.1,162.04,46.23369528]
[1724670458848,15.9209,162.1,162.06,11.72203425]
[1724670459514,15.9209,162.1,161.99,59.47622454]
[1724670459752,15.9209,162.1,161.99,16.28857759]
[1724670460045,15.9209,162.1,162.03,11.72203425]
[1724670461725,15.9209,162.1,162.07,11.72203425]
[1724670461936,15.9209,162.1,162.08,1.23376171]
[1724670462229,15.9209,162.1,162.07,11.72203425]
[1724670463250,15.9209,162.1,162.08,45.0]
[1724670464414,15.9209,162.1,162.07,11.72203425]
[1724670465546,15.9209,162.1,162.05,11.72203425]
[1724670465719,15.9209,162.1,162.06,45.0]
[1724670465921,15.9209,162.1,162.05,11.72203425]
[1724670467164,15.9209,162.1,162.07,11.72203425]
[1724670467942,15.9209,162.1,162.0,46.888137]
[1724670468256,15.9209,162.1,162.06,11.72203425]
[1724670471838,15.9209,162.1,162.0,9.54207004]
[1724670472054,15.9209,162.1,162.01,74.28582066]
[1724670473042,15.9209,162.1,162.06,29.28582066]
[1724670473229,15.6609,162.14,162.07,46.23372971]
[1724670473531,15.6609,162.14,162.08,1.23370972]
[1724670474343,15.6609,162.14,162.08,30.51953038]
[1724670476248,15.6609,162.14,162.1,29.28582066]
[1724670476457,15.6609,162.14,162.12,29.28582066]
[1724670478269,15.6609,162.14,162.13,1.23346396]
[1724670480046,15.6609,162.14,162.1,29.28582066]
[1724670480647,15.6609,162.14,162.08,29.28582066]
[1724670481253,15.6609,162.14,162.09,1.23366374]
[1724670484157,15.6609,162.14,162.1,29.28582066]
[1724670484358,15.6609,162.14,162.11,1.23351304]
[1724670485362,15.6609,162.14,162.1,29.28582066]
[1724670486063,15.6609,162.14,162.12,29.28582066]
[1724670487561,15.6609,162.14,162.13,1.23341256]
[1724670487762,15.6609,162.14,162.12,29.28582066]
[1724670490362,15.6609,162.14,162.13,1.23339641]
[1724670490575,15.6609,162.14,162.12,29.28582066]
[1724670491380,15.6671,162.2,162.12,29.28582066]
[1724670491547,15.6671,162.2,162.14,29.28582066]
[1724670491747,15.6671,162.2,162.15,46.23303897]
[1724670491979,15.6671,162.2,162.16,11.69447293]
[1724670492449,15.6671,162.2,162.15,56.69447293]
[1724670493254,15.6671,162.2,162.16,1.2330791]
[1724670494070,15.6671,162.2,162.15,45.0]
[1724670494639,16.5432,162.17,162.09,1.23349868]
[1724670494842,16.5432,162.17,162.07,29.2381132]
[1724670495960,16.5432,162.17,162.04,6.42597275]
[1724670495961,16.5432,162.17,162.09,29.2381132]
[1724670496146,16.5432,162.17,162.04,6.42597275]
[1724670496147,16.5432,162.17,162.11,29.2381132]
[1724670496348,16.5432,162.17,162.12,1.23336419]
[1724670500080,6.4237,162.16,162.07,6.42701501]
[1724670500289,15.4316,162.14,162.02,29.2381132]
[1724670500578,1.23336419,162.13,162.05,6.42815097]
[1724670500888,1.23336419,162.13,162.02,29.2381132]
[1724670500889,16.66496419,162.14,162.03,3.31019722]
[1724670501052,16.66496419,162.14,162.05,6.429877]
[1724670502373,16.66496419,162.14,162.02,29.2381132]
[1724670502374,20.0,162.13,162.02,29.2381132]
[1724670502686,21.23336419,162.13,162.04,29.2381132]
[1724670503147,20.0,162.13,162.04,29.2381132]
[1724670503547,16.66496419,162.14,162.04,29.2381132]
[1724670504069,15.4316,162.14,162.04,29.2381132]
[1724670504250,15.4316,162.14,162.08,29.2381132]
[1724670505149,6.4237,162.16,162.03,30.47161725]
[1724670505150,22.8039,162.13,162.03,30.47161725]
[1724670505347,24.03726419,162.13,162.01,29.2381132]
[1724670506492,1.23336419,162.12,162.01,29.2381132]
[1724670506654,21.23336419,162.12,162.01,29.2381132]
[1724670507553,21.23336419,162.12,162.02,45.0]
[1724670508691,21.23336419,162.12,161.95,3.007092]
[1724670508692,6.6508,162.06,161.98,29.2381132]
[1724670508858,6.6508,162.06,162.0,29.2381132]
[1724670509062,6.6508,162.06,162.01,1.23408791]
[1724670509276,6.6508,162.06,162.02,1.23409273]
[1724670509455,6.6508,162.06,162.0,29.2381132]
[1724670509783,6.6508,162.06,162.01,1.23404636]
[1724670509972,6.6508,162.06,162.02,1.23404859]
[1724670510169,6.6508,162.06,162.0,29.2381132]
[1724670510759,6.6508,162.06,161.98,29.2381132]
[1724670510990,20.0,162.05,161.98,29.2381132]
[1724670511856,20.0,162.05,162.0,29.2381132]
[1724670512058,20.0,162.05,161.96,6.42906162]
[1724670512259,20.0,162.05,161.99,29.2381132]
[1724670512459,6.6508,162.06,161.99,29.2381132]
[1724670512780,20.0,162.05,161.99,29.2381132]
[1724670514960,15.1501,162.07,162.03,29.2381132]
[1724670515165,21.2475,162.11,162.04,1.23396246]
[1724670515569,21.2475,162.11,162.05,29.2381132]
[1724670516495,1.23336419,162.1,162.03,29.2381132]
[1724670516860,21.23336419,162.1,162.03,29.2381132]
[1724670517590,20.0,162.1,162.03,29.2381132]
[1724670518461,21.23336419,162.1,162.03,29.2381132]
[1724670518860,21.23336419,162.1,162.0,29.2381132]
[1724670519067,21.23336419,162.1,162.01,45.0]
[1724670519283,20.0,162.1,162.01,45.0]
[1724670520271,20.0,162.1,162.02,1.23380668]
[1724670520475,20.0,162.1,162.01,45.0]
[1724670521401,21.23336419,162.1,162.01,45.0]
[1724670521568,21.23336419,162.1,162.0,29.2381132]
[1724670522091,45.0,162.09,161.98,35.66556365]
[1724670522283,21.23336419,162.08,161.98,35.66556365]
[1724670522467,1.23336419,162.07,161.98,35.66556365]
[1724670523493,6.2201,162.05,161.92,6.0697]
[1724670523671,21.23336419,162.04,161.94,29.2381132]
[1724670523986,21.23336419,162.04,161.95,6.42845594]
[1724670524795,20.0,162.04,161.95,6.42845594]
[1724670524973,20.0,162.04,161.96,30.47247992]
[1724670525974,6.2201,162.05,161.96,30.47247992]
[1724670526296,74.2381132,162.09,161.88,29.2381132]
[1724670526297,29.2381132,162.0,161.88,29.2381132]
[1724670526497,29.2381132,161.98,161.86,29.2381132]
[1724670526672,66.54397297,161.97,161.86,29.2381132]
[1724670527489,66.54397297,161.97,161.88,29.2381132]
[1724670527690,21.54397297,161.97,161.88,29.2381132]
[1724670527895,1.54397297,161.97,161.88,29.2381132]
[1724670528386,20.0,161.98,161.89,1.235082]
[1724670529272,20.0,161.98,161.88,29.2381132]
[1724670529495,1.54381561,161.97,161.88,29.2381132]
[1724670530891,1.54381561,161.97,161.86,29.2381132]
[1724670531106,15.7667,161.95,161.82,29.2381132]
[1724670531412,95.78229467,161.94,161.81,29.2381132]
[1724670531611,94.2381132,161.94,161.81,29.2381132]
[1724670531894,94.2381132,161.94,161.83,29.2381132]
[1724670532093,1.54432582,161.93,161.83,29.2381132]
[1724670532277,1.54420738,161.92,161.83,29.2381132]
[1724670532895,65.0,161.94,161.85,29.2381132]
[1724670533189,1.54419828,161.93,161.85,29.2381132]
[1724670533388,1.54417612,161.93,161.85,29.2381132]
[1724670533591,1.54420542,161.92,161.83,29.2381132]
[1724670533777,6.4296,161.9,161.67,26.4601]
[1724670533976,1.54420542,161.92,161.73,29.2381132]
[1724670533977,29.2381132,161.85,161.73,29.2381132]
[1724670534180,81.65465371,161.84,161.71,29.2381132]
[1724670534379,29.2381132,161.83,161.69,29.2381132]
[1724670534583,66.54541303,161.82,161.69,29.2381132]
[1724670535186,66.54541303,161.82,161.66,15.6632]
[1724670535187,20.0,161.82,161.73,29.2381132]
[1724670535391,21.54514839,161.83,161.73,29.2381132]
[1724670535689,1.54517038,161.82,161.73,29.2381132]
[1724670538795,21.5451725,161.83,161.75,29.2381132]
[1724670539709,1.54508958,161.82,161.75,29.2381132]
[1724670539885,20.0,161.83,161.66,15.6632]
[1724670540077,20.0,161.83,161.71,29.2381132]
[1724670540078,46.54535761,161.82,161.71,29.2381132]
[1724670540283,20.0,161.81,161.73,29.2381132]
[1724670540796,1.54524383,161.82,161.73,29.2381132]
[1724670541879,15.1095,161.84,161.75,29.2381132]
[1724670542085,15.1095,161.84,161.79,29.2381132]
[1724670544707,15.1095,161.84,161.81,29.2381132]
[1724670545000,6.4296,161.86,161.81,29.2381132]
[1724670545208,6.4296,161.86,161.83,29.2381132]
[1724670545394,15.4686,161.89,161.85,29.2381132]
[1724670545801,15.4686,161.89,161.83,29.2381132]
[1724670548386,15.4686,161.89,161.76,29.2381132]
[1724670548590,15.4686,161.89,161.85,29.2381132]
[1724670549811,6.0037,161.91,161.87,29.2381132]
[1724670549998,6.0037,161.91,161.88,1.23529443]
[1724670550199,6.0037,161.91,161.89,29.2381132]
[1724670550810,15.916,161.93,161.89,29.2381132]
[1724670551188,15.916,161.93,161.9,1.23516487]
[1724670551796,15.916,161.93,161.89,29.2381132]
[1724670552193,1.54397588,161.92,161.87,29.2381132]
[1724670552490,1.54397588,161.92,161.85,29.2381132]
[1724670552804,21.54397588,161.92,161.83,29.2381132]
[1724670553293,45.0,161.91,161.83,29.2381132]
[1724670553493,1.5445245,161.9,161.81,29.2381132]
[1724670553808,1.54453854,161.89,161.81,29.2381132]
[1724670554005,1.54453854,161.89,161.81,36.69597153]
[1724670554789,6.1992,161.88,161.81,36.69597153]
[1724670554995,21.54473774,161.87,161.79,36.69597153]
[1724670555311,15.6369,161.86,161.79,36.69597153]
[1724670556794,1.5447386,161.85,161.79,36.69597153]
[1724670557314,1.5447386,161.85,161.77,36.69597153]
[1724670557820,15.6369,161.86,161.79,36.69597153]
[1724670558029,17.18175433,161.86,161.79,36.69597153]
[1724670558510,1.5448549,161.85,161.79,36.69597153]
[1724670558698,21.5448549,161.85,161.76,36.69597153]
[1724670559212,21.5448549,161.85,161.68,36.69597153]
[1724670559213,45.0,161.84,161.74,36.69597153]
[1724670559416,6.1381,161.82,161.74,36.69597153]
[1724670559604,15.141,161.8,161.74,36.69597153]
[1724670559799,21.54541505,161.79,161.71,36.69597153]
[1724670560691,45.0,161.78,161.71,36.69597153]
[1724670560892,15.4782,161.76,161.64,0.841083]
[1724670561089,1.54598714,161.75,161.65,36.69597153]
[1724670561308,21.54598714,161.75,161.65,36.69597153]
[1724670562423,45.0,161.74,161.65,36.69597153]
[1724670562720,21.54612637,161.73,161.65,36.69597153]
[1724670563095,20.0,161.73,161.65,36.69597153]
[1724670563295,15.4782,161.76,161.68,36.69597153]
[1724670563296,20.0,161.75,161.68,36.69597153]
[1724670564539,20.0,161.75,161.71,36.69597153]
[1724670565028,20.0,161.75,161.72,1.23661783]
[1724670566331,15.4782,161.76,161.72,1.23661783]
[1724670566508,20.0,161.75,161.72,1.23661783]
[1724670570208,20.0,161.75,161.71,36.69597153]
[1724670571115,21.54569702,161.75,161.68,36.69597153]
[1724670573336,21.54569702,161.75,161.66,36.69597153]
[1724670573837,45.0,161.74,161.66,36.69597153]
[1724670574139,21.54612881,161.73,161.66,36.69597153]
[1724670575932,20.0,161.73,161.66,36.69597153]
[1724670576235,20.0,161.73,161.68,29.40740868]
[1724670576430,1.5461308,161.74,161.68,29.40740868]
[1724670578147,21.54609211,161.75,161.68,29.40740868]
[1724670578440,20.0,161.75,161.68,29.40740868]
[1724670578647,20.0,161.75,161.69,1.23679747]
[1724670579732,1.54598783,161.74,161.68,29.40740868]
[1724670580649,1.54607662,161.73,161.68,29.40740868]
[1724670581747,1.54607729,161.74,161.68,29.40740868]
[1724670582123,1.54607714,161.73,161.68,29.40740868]
[1724670583349,1.54607607,161.74,161.68,29.40740868]
[1724670583525,1.54607741,161.73,161.68,29.40740868]
[1724670584643,1.54607748,161.74,161.68,29.40740868]
[1724670584937,1.54607747,161.73,161.68,29.40740868]
[1724670585919,1.54607771,161.74,161.68,29.40740868]
[1724670586237,1.54607764,161.73,161.68,29.40740868]
[1724670591763,20.0,161.75,161.68,29.40740868]
[1724670592128,1.54600315,161.74,161.68,29.40740868]
[1724670592841,1.54601504,161.73,161.68,29.40740868]
[1724670593047,1.54601504,161.73,161.66,29.40740868]
[1724670593821,21.54601504,161.73,161.66,29.40740868]
[1724670595435,45.0,161.72,161.66,29.40740868]
[1724670595636,21.54633587,161.71,161.66,29.40740868]
[1724670596049,1.54633587,161.7,161.66,29.40740868]
[1724670599165,21.54633617,161.71,161.68,29.40740868]
[1724670599380,404.2782,161.76,161.7,29.40740868]
[1724670599674,6.2606,161.77,161.73,29.40740868]
[1724670599977,15.3324,161.8,161.73,29.40740868]
[1724670600187,16.87791087,161.8,161.73,29.40740868]
[1724670600543,16.87791087,161.8,161.75,29.40740868]
[1724670600544,15.3324,161.8,161.75,29.40740868]
[1724670600737,6.5605,161.81,161.77,29.40740868]
[1724670600943,388.8,161.82,161.77,29.40740868]
[1724670601177,21.3644,161.85,161.77,29.40740868]
[1724670601956,45.0,161.84,161.77,29.40740868]
[1724670602549,21.3644,161.85,161.77,29.40740868]
[1724670602946,1.54507482,161.84,161.77,29.40740868]
[1724670603461,1.54508361,161.84,161.77,29.40740868]
[1724670603957,21.3644,161.85,161.78,1.23610195]
[1724670604158,20.0,161.84,161.78,1.23610195]
[1724670605064,6.44445621,161.88,161.83,29.40740868]
[1724670605274,22.3547,161.89,161.83,29.40740868]
[1724670605568,29.40740868,161.96,161.84,1.2357577]
[1724670605569,21.8883,161.93,161.84,1.2357577]
[1724670606471,21.8883,161.93,161.87,29.40740868]
[1724670606766,22.5842,161.97,161.88,1.23539728]
[1724670606970,22.5842,161.97,161.89,29.40740868]
[1724670607171,22.5842,161.97,161.9,1.23517308]
[1724670607373,6.44840923,162.0,161.91,29.40740868]
[1724670607670,6.507,162.01,161.91,29.40740868]
[1724670607979,6.507,162.01,161.92,1.23502025]
[1724670608181,6.507,162.01,161.91,29.40740868]
[1724670608389,6.507,162.01,161.93,29.40740868]
[1724670608681,6.507,162.01,161.94,1.23482653]
[1724670608849,1.54350811,162.0,161.91,29.40740868]
[1724670609060,1.54372762,161.99,161.91,29.40740868]
[1724670609244,1.54385951,162.0,161.91,29.40740868]
[1724670609448,1.54385951,162.0,161.93,29.40740868]
[1724670609669,8.05049697,162.01,161.93,29.40740868]
[1724670609913,6.507,162.01,161.93,29.40740868]
[1724670610202,1.54353694,162.0,161.89,29.40740868]
[1724670610778,46.54353694,162.0,161.89,29.40740868]
[1724670610978,20.0,161.99,161.89,29.40740868]
[1724670611198,46.54391065,161.98,161.87,29.40740868]
[1724670611504,20.0,161.97,161.89,29.40740868]
[1724670611686,1.5438555,161.96,161.89,29.40740868]
[1724670612008,1.54391851,161.95,161.85,29.40740868]
[1724670612704,20.0,161.95,161.86,1.23548767]
[1724670612913,45.0,161.94,161.85,29.40740868]
[1724670613081,20.0,161.93,161.85,29.40740868]
[1724670613278,1.54415581,161.92,161.8,15.7584]
[1724670613475,1.54415581,161.92,161.81,29.40740868]
[1724670614075,8.03685581,161.92,161.81,36.6904171]
[1724670614272,20.0,161.91,161.81,36.6904171]
[1724670614504,1.54457476,161.9,161.81,36.6904171]
[1724670614799,1.54472227,161.89,161.81,36.6904171]
[1724670614992,21.54472227,161.89,161.81,36.6904171]
[1724670615191,45.0,161.88,161.78,36.6904171]
[1724670615370,21.54490988,161.87,161.78,36.6904171]
[1724670617408,45.0,161.86,161.76,15.7584]
[1724670617606,21.54503228,161.85,161.76,15.7584]
[1724670618300,21.54503228,161.85,161.75,43.0766171]
[1724670618593,6.2301,161.84,161.72,52.6110171]
[1724670618790,6.2301,161.84,161.71,6.45041424]
[1724670618791,66.54541509,161.83,161.71,6.45041424]
[1724670619095,1.54556501,161.82,161.68,52.6110171]
[1724670619504,453.8,161.83,161.7,6.45732825]
[1724670619792,408.8,161.83,161.76,36.6904171]
[1724670619983,20.0,161.83,161.76,36.6904171]
[1724670620315,20.0,161.83,161.77,1.23611885]
[1724670620607,21.54519343,161.83,161.76,36.6904171]
[1724670621814,1.54519334,161.82,161.76,36.6904171]
[1724670622905,6.2301,161.84,161.76,36.6904171]
[1724670623206,652.483,161.88,161.79,36.6904171]
[1724670623416,6.0877,161.94,161.85,36.6904171]
[1724670623581,6.0877,161.94,161.88,36.6904171]
[1724670624805,20.0,161.93,161.88,36.6904171]
[1724670624986,1.54415165,161.92,161.84,36.6904171]
[1724670625885,395.25172419,162.0,161.84,36.6904171]
[1724670625886,6.0877,161.99,161.85,6.2045]
[1724670626087,6.0877,161.99,161.88,36.6904171]
[1724670626287,46.54408531,161.98,161.88,36.6904171]
[1724670627286,20.0,161.97,161.88,36.6904171]
[1724670627484,45.0,161.96,161.88,36.6904171]
[1724670627696,21.54408795,161.95,161.88,36.6904171]
[1724670629801,20.0,161.95,161.88,36.6904171]
[1724670630004,394.8877,161.99,161.89,1.23518788]
[1724670630200,1.54388032,161.98,161.88,36.6904171]
[1724670630613,1.54388032,161.98,161.91,36.6904171]
[1724670631284,6.6202,162.04,161.91,36.6904171]
[1724670631490,6.6202,162.04,161.94,36.6904171]
[1724670631491,1.54355315,162.03,161.94,36.6904171]
[1724670633317,21.54355315,162.03,161.94,36.6904171]
[1724670633696,45.0,162.02,161.94,36.6904171]
[1724670633892,1.54371446,162.01,161.98,36.6904171]
[1724670634203,6.6202,162.04,161.98,36.6904171]